bitfinex/quotes_BTCUSD_20250713
["timestamp","ask_amount","ask_price","bid_price","bid_amount"]
[1752412563815,0.41942363,118120.0,118100.0,0.33892]
[1752412564080,0.41942363,118120.0,118100.0,0.33583]
[1752412564310,0.42042363,118120.0,118100.0,0.33683]
[1752412564894,0.42142363,118120.0,118100.0,0.33683]
[1752412566385,0.42142363,118120.0,118110.0,0.00211667]
[1752412566606,0.42342363,118120.0,118110.0,0.00408667]
[1752412567524,0.42242363,118120.0,118110.0,0.00408667]
[1752412567790,0.42242363,118120.0,118110.0,0.00211667]
[1752412567973,0.42242363,118120.0,118110.0,0.00311667]
[1752412568425,0.42442363,118120.0,118110.0,0.00311667]
[1752412568642,0.42442363,118120.0,118110.0,0.00508667]
[1752412569787,0.42442363,118120.0,118110.0,0.00311667]
[1752412571036,0.42442363,118120.0,118110.0,0.001]
[1752412571461,0.89809802,118120.0,118110.0,0.001]
[1752412571716,0.94354861,118120.0,118110.0,0.3348]
[1752412571924,1.32348202,118120.0,118110.0,0.3348]
[1752412572344,0.92348202,118120.0,118110.0,0.20384]
[1752412572561,0.92348202,118120.0,118110.0,0.3348]
[1752412572837,0.94432636,118120.0,118110.0,0.3338]
[1752412573061,0.94432636,118120.0,118110.0,0.20284]
[1752412573282,0.94432636,118120.0,118110.0,0.3338]
[1752412573283,1.00432636,118120.0,118110.0,0.3338]
[1752412574194,0.98248202,118120.0,118110.0,0.3338]
[1752412574411,0.98748202,118120.0,118110.0,0.3348]
[1752412575051,0.98548202,118120.0,118110.0,0.3348]
[1752412575264,0.91990589,118120.0,118110.0,0.3348]
[1752412575691,0.91790589,118120.0,118110.0,0.3348]
[1752412575906,0.60790589,118120.0,118110.0,0.3348]
[1752412576128,0.61090589,118120.0,118110.0,0.3348]
[1752412576555,0.86090589,118120.0,118110.0,0.3348]
[1752412577171,0.61090589,118120.0,118110.0,0.3348]
[1752412579998,0.61090589,118120.0,118110.0,0.20384]
[1752412580209,0.61090589,118120.0,118110.0,0.3348]
[1752412580954,0.61090589,118120.0,118110.0,0.20384]
[1752412581144,0.61090589,118120.0,118110.0,0.3348]
[1752412581347,0.61090589,118120.0,118110.0,0.20384]
[1752412581745,0.61090589,118120.0,118110.0,0.3348]
[1752412582710,0.61090589,118120.0,118110.0,0.20384]
[1752412583228,0.56011589,118120.0,118110.0,0.3348]
[1752412583679,0.54023756,118120.0,118110.0,0.3348]
[1752412586770,0.56052739,118120.0,118110.0,0.3348]
[1752412590957,0.61131739,118120.0,118110.0,0.3348]
[1752412593760,0.60821739,118120.0,118110.0,0.3348]
[1752412594066,0.61134739,118120.0,118110.0,0.3348]
[1752412594203,0.61134739,118120.0,118110.0,0.20384]
[1752412594430,0.61134739,118120.0,118110.0,0.3348]
[1752412595754,1.01134739,118120.0,118110.0,0.3348]
[1752412599082,0.61134739,118120.0,118110.0,0.3348]
[1752412599913,0.61134739,118120.0,118110.0,0.20384]
[1752412600337,0.25,118100.0,118080.0,0.002]
[1752412600522,0.53125976,118090.0,118080.0,0.00204952]
[1752412600737,0.56235976,118090.0,118080.0,0.33588952]
[1752412600951,0.56537976,118090.0,118080.0,0.33588952]
[1752412601571,0.56537976,118090.0,118080.0,0.33688952]
[1752412601775,0.59076776,118090.0,118080.0,0.33588952]
[1752412602111,0.59176776,118090.0,118080.0,0.33688952]
[1752412603331,0.56637976,118090.0,118080.0,0.33688952]
[1752412603520,0.59176776,118090.0,118080.0,0.33688952]
[1752412603926,0.59176776,118090.0,118080.0,0.20592952]
[1752412604209,0.59176776,118090.0,118080.0,0.33688952]
[1752412604383,0.56637976,118090.0,118080.0,0.33688952]
[1752412605014,0.59176776,118090.0,118080.0,0.33688952]
[1752412605238,0.56637976,118090.0,118080.0,0.33688952]
[1752412605893,0.96637976,118090.0,118080.0,0.33688952]
[1752412606499,0.84671976,118090.0,118080.0,0.33890952]
[1752412606714,0.82642993,118090.0,118080.0,0.33890952]
[1752412609463,0.82642993,118090.0,118080.0,0.40614952]
[1752412610186,0.08642993,118090.0,118080.0,0.40614952]
[1752412612042,0.08642993,118090.0,118080.0,0.37374952]
[1752412612270,0.08642993,118090.0,118080.0,0.33890952]
[1752412612685,0.08642993,118090.0,118080.0,0.20794952]
[1752412612891,0.08642993,118090.0,118080.0,0.33890952]
[1752412613101,0.08642993,118090.0,118080.0,0.20794952]
[1752412613311,0.08642993,118090.0,118080.0,0.33890952]
[1752412616612,0.09139993,118090.0,118080.0,0.20794952]
[1752412616845,0.15439993,118090.0,118080.0,0.33684952]
[1752412617064,0.08642993,118090.0,118080.0,0.33886952]
[1752412617275,0.08642993,118090.0,118080.0,0.34190952]
[1752412617490,0.08642993,118090.0,118080.0,0.40470952]
[1752412617929,0.001,118090.0,118080.0,0.40470952]
[1752412619422,0.001,118090.0,118080.0,0.24178952]
[1752412619644,0.001,118090.0,118080.0,0.37270952]
[1752412620691,0.42642993,118090.0,118080.0,0.33886952]
[1752412622015,0.08642993,118090.0,118080.0,0.20794952]
[1752412622199,0.08642993,118090.0,118080.0,0.33886952]
[1752412626456,0.15461993,118090.0,118080.0,0.20592952]
[1752412626659,0.15461993,118090.0,118080.0,0.33684952]
[1752412630435,0.15461993,118090.0,118080.0,0.20592952]
[1752412630658,0.51432023,118090.0,118080.0,0.46776952]
[1752412631096,0.91432023,118090.0,118080.0,0.46776952]
[1752412632244,0.91432023,118090.0,118080.0,0.20592952]
[1752412632477,0.91432023,118090.0,118080.0,0.33684952]
[1752412632696,0.51432023,118090.0,118080.0,0.33684952]
[1752412633350,0.57432023,118090.0,118080.0,0.33684952]
[1752412636301,0.62511023,118090.0,118080.0,0.33684952]
[1752412637186,0.62511023,118090.0,118080.0,0.20592952]
[1752412637394,0.62511023,118090.0,118080.0,0.33684952]
[1752412639143,0.65050023,118090.0,118080.0,0.33684952]
[1752412640455,0.65050023,118090.0,118080.0,0.20592952]
[1752412640680,0.65050023,118090.0,118080.0,0.33684952]
[1752412640901,0.59971023,118090.0,118080.0,0.33684952]
[1752412641121,0.6555,118070.0,118060.0,0.0021]
[1752412641357,0.74303993,118070.0,118060.0,0.33630953]
[1752412641582,0.76274023,118070.0,118060.0,0.33630953]
[1752412641793,0.76582023,118070.0,118060.0,0.33630953]
[1752412642216,0.79121523,118070.0,118060.0,0.33630953]
[1752412642635,0.84200523,118070.0,118060.0,0.20506953]
[1752412642851,0.84200523,118070.0,118060.0,0.33626953]
[1752412643277,0.59200523,118070.0,118060.0,0.33626953]
[1752412643914,0.59800523,118070.0,118060.0,0.33726953]
[1752412644567,0.84800523,118070.0,118060.0,0.33726953]
[1752412646736,0.79721523,118070.0,118060.0,0.33726953]
[1752412646864,0.55021523,118070.0,118060.0,0.33726953]
[1752412650998,0.60100523,118070.0,118060.0,0.33726953]
[1752412654260,0.60100523,118070.0,118060.0,0.20606953]
[1752412654483,0.60100523,118070.0,118060.0,0.33710953]
[1752412654665,0.60100523,118070.0,118060.0,0.20606953]
[1752412654870,0.6894257,118070.0,118060.0,0.20606953]
[1752412655093,0.6894257,118070.0,118060.0,0.33706953]
[1752412656339,0.6894257,118070.0,118060.0,0.33702953]
[1752412657849,0.6894257,118070.0,118060.0,0.20606953]
[1752412658246,0.45579,118050.0,118040.0,0.0021]
[1752412658455,0.56303023,118050.0,118040.0,0.33651471]
[1752412658862,0.59159823,118050.0,118040.0,0.33651471]
[1752412659982,0.59159823,118050.0,118040.0,0.20555471]
[1752412660222,0.59159823,118050.0,118040.0,0.33651471]
[1752412660621,0.59259823,118050.0,118040.0,0.33651471]
[1752412661075,0.59259823,118050.0,118040.0,0.33857471]
[1752412661277,0.56720023,118050.0,118040.0,0.33857471]
[1752412662339,0.56720023,118050.0,118040.0,0.33957471]
[1752412662555,0.57120023,118050.0,118040.0,0.33957471]
[1752412663076,0.45582793,118050.0,118040.0,0.40556471]
[1752412663312,0.43042993,118050.0,118040.0,0.40556471]
[1752412668220,0.005,118050.0,118040.0,0.40556471]
[1752412669332,0.001,118050.0,118040.0,0.40456471]
[1752412669571,0.002,118050.0,118040.0,0.40656471]
[1752412669783,0.001,118050.0,118040.0,0.40656471]
[1752412669995,0.001,118050.0,118040.0,0.40756471]
[1752412670418,0.34,118070.0,118060.0,0.0638]
[1752412670655,0.42542993,118070.0,118060.0,0.19682]
[1752412670888,0.42542993,118070.0,118060.0,0.20001]
[1752412672496,0.42942993,118070.0,118060.0,0.20101]
[1752412674756,0.344,118070.0,118060.0,0.20101]
[1752412674969,0.004,118070.0,118060.0,0.20101]
[1752412678507,0.004,118070.0,118060.0,0.21555085]
[1752412678719,0.004,118070.0,118060.0,0.30098078]
[1752412678931,0.004,118070.0,118060.0,0.35098078]
[1752412679150,0.004,118070.0,118060.0,0.40098067]
[1752412679394,0.002,118090.0,118080.0,0.0622]
[1752412679656,0.002,118090.0,118080.0,0.32408]
[1752412679868,0.002,118090.0,118080.0,0.42611078]
[1752412680081,0.002,118090.0,118080.0,0.42930078]
[1752412680718,0.0020495,118090.0,118080.0,0.42930078]
[1752412680961,0.0020495,118090.0,118080.0,0.43030078]
[1752412681604,0.0030495,118090.0,118080.0,0.43130078]
[1752412682041,0.0030495,118090.0,118080.0,0.48130078]
[1752412682377,0.002,118110.0,118100.0,0.07674085]
[1752412682603,0.00204952,118110.0,118100.0,0.63102763]
[1752412682805,0.00204952,118110.0,118100.0,0.63210078]
[1752412683247,0.00204952,118110.0,118100.0,0.03316]
[1752412683477,0.51417919,118110.0,118100.0,0.20288]
[1752412683713,0.51417919,118110.0,118100.0,0.3338]
[1752412683935,0.54035686,118110.0,118100.0,0.20288]
[1752412684137,0.51417919,118110.0,118100.0,0.3338]
[1752412684988,0.51517919,118110.0,118100.0,0.33576]
[1752412685200,0.91417919,118110.0,118100.0,0.33376]
[1752412685612,0.91917919,118110.0,118100.0,0.33476]
[1752412686272,0.51139919,118110.0,118100.0,0.33683]
[1752412686445,0.11139919,118110.0,118100.0,0.33683]
[1752412687671,0.11638919,118110.0,118100.0,0.33476]
[1752412688369,0.17638919,118110.0,118100.0,0.33476]
[1752412688805,0.23898919,118110.0,118100.0,0.20388]
[1752412689032,0.23898919,118110.0,118100.0,0.33476]
[1752412693560,0.57898919,118110.0,118100.0,0.33476]
[1752412697737,0.49247945,118110.0,118100.0,0.33979]
[1752412697951,0.40704952,118110.0,118100.0,0.33979]
[1752412698385,0.34704952,118110.0,118100.0,0.33979]
[1752412699248,0.34704952,118110.0,118100.0,0.20288]
[1752412700358,0.35203952,118110.0,118100.0,0.33376]
[1752412700566,0.34704952,118110.0,118100.0,0.33376]
[1752412701903,0.34998952,118110.0,118100.0,0.33376]
[1752412704663,0.35203952,118110.0,118100.0,0.33376]
[1752412707133,0.34704952,118110.0,118100.0,0.33376]
[1752412708145,0.34704952,118110.0,118100.0,0.20288]
[1752412708367,0.34704952,118110.0,118100.0,0.33372]
[1752412709326,0.34704952,118110.0,118100.0,0.83372]
[1752412712398,0.34704952,118110.0,118100.0,0.89652]
[1752412713558,0.011021,118120.0,118110.0,0.0628]
[1752412713773,0.011021,118120.0,118110.0,0.06491667]
[1752412713991,0.1,118130.0,118110.0,0.06491667]
[1752412714206,0.1,118130.0,118120.0,0.13084]
[1752412714868,0.11066026,118130.0,118120.0,0.13295649]
[1752412715497,0.45066026,118130.0,118120.0,0.13295649]
[1752412715629,0.45166026,118130.0,118120.0,0.13295649]
[1752412715830,0.45566026,118130.0,118120.0,0.20918085]
[1752412717538,0.45466026,118130.0,118120.0,0.20918085]
[1752412717739,0.45066026,118130.0,118120.0,0.20918085]
[1752412717931,0.45066026,118130.0,118120.0,0.21018085]
[1752412718127,0.01066026,118130.0,118120.0,0.21018085]
[1752412718536,0.40865,118150.0,118120.0,0.21018085]
[1752412718742,0.01068253,118130.0,118120.0,0.21018085]
[1752412718947,0.00325,118140.0,118120.0,0.21018085]
[1752412719168,0.00325,118140.0,118120.0,0.17758085]
[1752412719393,0.00325,118140.0,118120.0,0.14738085]
[1752412720460,0.00325,118140.0,118120.0,0.14638085]
[1752412720885,0.00325,118140.0,118120.0,0.14538085]
[1752412721088,0.00525,118140.0,118120.0,0.14638085]
[1752412722545,0.01570039,118140.0,118120.0,0.17928085]
[1752412722755,0.00525,118140.0,118120.0,0.17928085]
[1752412725090,0.79620576,118150.0,118120.0,0.17928085]
[1752412725325,0.00198,118140.0,118130.0,0.00201]
[1752412726175,0.0122996,118140.0,118130.0,0.00201]
[1752412726379,0.00198,118140.0,118130.0,0.00201]
[1752412726997,0.08740993,118140.0,118130.0,0.2028]
[1752412727204,0.09065993,118140.0,118130.0,0.33356]
[1752412727405,0.09065993,118140.0,118130.0,0.2028]
[1752412727580,0.09065993,118140.0,118130.0,0.33356]
[1752412727807,0.11257967,118140.0,118130.0,0.33456]
[1752412728230,0.17527967,118140.0,118130.0,0.33456]
[1752412729476,0.18575812,118140.0,118130.0,0.33456]
[1752412729680,0.18575812,118140.0,118130.0,0.2038]
[1752412729862,0.18575812,118140.0,118130.0,0.33456]
[1752412730761,0.18675812,118140.0,118130.0,0.33456]
[1752412732277,0.18675812,118140.0,118130.0,0.2038]
[1752412732487,0.18675812,118140.0,118130.0,0.33456]
[1752412733142,0.18675812,118140.0,118130.0,0.2038]
[1752412733344,0.18675812,118140.0,118130.0,0.33456]
[1752412734266,0.52675812,118140.0,118130.0,0.33456]
[1752412734468,0.52650619,118140.0,118130.0,0.33456]
[1752412735671,0.4034,118130.0,118120.0,0.002]
[1752412735873,0.49405993,118130.0,118120.0,0.2048]
[1752412736976,0.49405993,118130.0,118120.0,0.33556]
[1752412737588,0.49605993,118130.0,118120.0,0.33656]
[1752412738248,0.49405993,118130.0,118120.0,0.33556]
[1752412738630,0.49705993,118130.0,118120.0,0.33656]
[1752412739002,0.49805993,118130.0,118120.0,0.33656]
[1752412742287,0.49805993,118130.0,118120.0,0.33506]
[1752412744422,0.49805993,118130.0,118120.0,0.2043]
[1752412744864,0.49805993,118130.0,118120.0,0.33502]
[1752412745287,0.89805993,118130.0,118120.0,0.2043]
[1752412745493,0.91697967,118130.0,118120.0,0.33502]
[1752412745731,0.59311067,118130.0,118120.0,0.33502]
[1752412746250,0.70485,118110.0,118100.0,0.6]
[1752412746477,0.79229993,118110.0,118100.0,0.93356]
[1752412746720,0.79550993,118110.0,118100.0,0.93356]
[1752412746944,0.82089593,118110.0,118100.0,0.93356]
[1752412747412,0.81989593,118110.0,118100.0,0.93356]
[1752412747640,0.87989593,118110.0,118100.0,0.93356]
[1752412748126,0.87989593,118110.0,118100.0,0.80284]
[1752412748360,0.87989593,118110.0,118100.0,0.93356]
[1752412748898,0.85650993,118110.0,118100.0,0.93456]
[1752412750786,0.88188657,118110.0,118100.0,0.93456]
[1752412754053,0.48944993,118110.0,118100.0,0.93668]
[1752412754528,0.49265993,118110.0,118100.0,0.93668]
[1752412755207,0.48944993,118110.0,118100.0,0.93668]
[1752412755880,0.88944993,118110.0,118100.0,0.93668]
[1752412759072,0.89265993,118110.0,118100.0,0.93668]
[1752412759516,0.89265993,118110.0,118100.0,0.93456]
[1752412760462,0.95455993,118110.0,118100.0,0.93456]
[1752412761672,0.85530993,118110.0,118100.0,0.80384]
[1752412761895,0.89989056,118110.0,118100.0,0.93452]
[1752412762115,0.92527756,118110.0,118100.0,0.93452]
[1752412762999,0.92327756,118110.0,118100.0,0.93352]
[1752412763216,0.92527756,118110.0,118100.0,0.93352]
[1752412763453,0.93127756,118110.0,118100.0,0.93452]
[1752412769094,0.60178693,118110.0,118100.0,0.93664]
[1752412769310,0.57158693,118110.0,118100.0,0.93664]
[1752412769520,0.49544993,118110.0,118100.0,0.93664]
[1752412769951,0.15342993,118110.0,118100.0,1.00057]
[1752412770422,0.49342993,118110.0,118100.0,1.00057]
[1752412775531,0.49342993,118110.0,118100.0,0.97037]
[1752412775733,0.49342993,118110.0,118100.0,0.93977]
[1752412775933,0.89342993,118110.0,118100.0,0.93977]
[1752412776597,0.89342993,118110.0,118100.0,0.93664]
[1752412777780,0.96284993,118110.0,118100.0,0.80384]
[1752412778065,0.56284993,118110.0,118100.0,0.80384]
[1752412778300,0.56284993,118110.0,118100.0,0.93448]
[1752412778762,0.56284993,118110.0,118100.0,0.80384]
[1752412778892,0.56284993,118110.0,118100.0,0.93448]
[1752412781804,0.61359993,118110.0,118100.0,0.93444]
[1752412782240,0.63898493,118110.0,118100.0,0.93444]
[1752412783706,0.61359993,118110.0,118100.0,0.93444]
[1752412784758,0.58099993,118110.0,118100.0,0.93444]
[1752412785190,0.54919993,118110.0,118100.0,0.93444]
[1752412785839,0.54417993,118110.0,118100.0,0.93643]
[1752412792638,0.49342993,118110.0,118100.0,0.93643]
[1752412792864,0.49342993,118110.0,118100.0,1.00337]
[1752412794368,0.49342993,118110.0,118100.0,0.93957]
[1752412794572,0.49342993,118110.0,118100.0,0.93643]
[1752412795797,0.89342993,118110.0,118100.0,0.93643]
[1752412798639,0.89342993,118110.0,118100.0,0.96963]
[1752412799060,0.89342993,118110.0,118100.0,0.97277]
[1752412799237,0.89342993,118110.0,118100.0,1.00537]
[1752412800768,0.89342993,118110.0,118100.0,0.96963]
[1752412800996,0.89342993,118110.0,118100.0,0.97277]
[1752412801222,0.89342993,118110.0,118100.0,1.00537]
[1752412801437,0.89342993,118110.0,118100.0,1.00223]
[1752412801883,0.89342993,118110.0,118100.0,0.97277]
[1752412802091,0.89342993,118110.0,118100.0,1.00537]
[1752412803786,0.89342993,118110.0,118100.0,0.97277]
[1752412804882,0.89342993,118110.0,118100.0,1.00537]
[1752412805106,0.49342993,118110.0,118100.0,1.00537]
[1752412805957,0.408,118110.0,118100.0,1.00537]
[1752412806180,0.068,118110.0,118100.0,1.00537]
[1752412807095,0.006,118110.0,118100.0,1.00437]
[1752412807324,0.34,118120.0,118110.0,0.0631]
[1752412807549,0.42542993,118120.0,118110.0,0.19559]
[1752412807777,0.42542993,118120.0,118110.0,0.19857]
[1752412808700,0.42842993,118120.0,118110.0,0.19957]
[1752412811058,0.003,118120.0,118110.0,0.19957]
[1752412811461,0.004,118120.0,118110.0,0.19957]
[1752412813328,0.004,118120.0,118110.0,0.29954078]
[1752412813531,0.0015,118130.0,118120.0,0.01454085]
[1752412813845,0.0015,118130.0,118120.0,0.08279085]
[1752412814831,0.0025,118130.0,118120.0,0.08690734]
[1752412815207,0.0025,118130.0,118120.0,0.08790734]
[1752412815584,0.0025,118130.0,118120.0,0.08579085]
[1752412816245,0.00254952,118130.0,118120.0,0.08579085]
[1752412818985,0.00254952,118130.0,118120.0,0.20173]
[1752412830668,0.07113952,118130.0,118120.0,0.003]
[1752412830878,0.15656945,118130.0,118120.0,0.13344]
[1752412833581,0.49656945,118130.0,118120.0,0.13344]
[1752412836827,0.49363945,118130.0,118120.0,0.13546]
[1752412837047,0.43317945,118130.0,118120.0,0.13546]
[1752412838240,0.46467945,118130.0,118120.0,0.13546]
[1752412838466,0.49587945,118130.0,118120.0,0.13344]
[1752412840725,0.49587945,118130.0,118120.0,0.33624]
[1752412844697,0.49487945,118130.0,118120.0,0.33424]
[1752412844906,0.49487945,118130.0,118120.0,0.33324]
[1752412845168,0.49587945,118130.0,118120.0,0.33524]
[1752412845394,0.49487945,118130.0,118120.0,0.33424]
[1752412845652,0.49587945,118130.0,118120.0,0.33524]
[1752412847947,0.49587945,118130.0,118120.0,0.33424]
[1752412848177,0.52125945,118130.0,118120.0,0.33424]
[1752412849065,0.58125945,118130.0,118120.0,0.33424]
[1752412854055,0.42993945,118130.0,118120.0,0.33626]
[1752412854251,0.42993945,118130.0,118120.0,0.36936]
[1752412854460,0.42797945,118130.0,118120.0,0.36936]
[1752412854711,0.42797945,118130.0,118120.0,0.40298]
[1752412856657,0.34254952,118130.0,118120.0,0.40298]
[1752412860017,0.34254952,118130.0,118120.0,0.41752085]
[1752412861303,0.00254952,118130.0,118120.0,0.41752085]
[1752412862469,0.00154952,118130.0,118120.0,0.41652085]
[1752412862842,0.00254952,118130.0,118120.0,0.42252085]
[1752412865900,0.00254952,118130.0,118120.0,0.52796085]
[1752412866111,0.01047845,118140.0,118120.0,0.46446085]
[1752412866308,0.01047845,118140.0,118130.0,0.06385]
[1752412866519,0.002,118150.0,118130.0,0.06583]
[1752412866719,0.00204952,118150.0,118140.0,0.1304]
[1752412866959,0.00204952,118150.0,118140.0,0.13238]
[1752412867399,0.01177379,118150.0,118140.0,0.13238]
[1752412867610,0.00204952,118150.0,118140.0,0.13238]
[1752412869279,0.00712952,118150.0,118140.0,0.13238]
[1752412869484,0.03742952,118150.0,118130.0,0.0618]
[1752412869688,0.15002945,118150.0,118140.0,0.13036]
[1752412870329,0.15295945,118150.0,118140.0,0.13036]
[1752412870754,0.00204952,118150.0,118140.0,0.13539]
[1752412870964,0.00204952,118150.0,118140.0,0.19669]
[1752412871380,0.00304952,118150.0,118140.0,0.19769]
[1752412871821,0.01292504,118150.0,118140.0,0.19769]
[1752412872029,0.00304952,118150.0,118140.0,0.19769]
[1752412875287,0.00304952,118150.0,118140.0,0.16749]
[1752412876350,0.00304952,118150.0,118140.0,0.16759]
[1752412881252,0.01302555,118150.0,118140.0,0.16759]
[1752412882348,0.01302555,118150.0,118140.0,0.13649]
[1752412884236,0.01302555,118150.0,118140.0,0.16699]
[1752412884681,0.01302555,118150.0,118140.0,0.13649]
[1752412885563,0.01302555,118150.0,118140.0,0.1334]
[1752412887364,0.01517555,118150.0,118140.0,0.00308]
[1752412887557,0.01810555,118150.0,118140.0,0.1334]
[1752412889011,0.16543548,118150.0,118140.0,0.13142]
[1752412889850,0.16543548,118150.0,118140.0,0.0011]
[1752412890080,0.16543548,118150.0,118140.0,0.13142]
[1752412891045,0.21618548,118150.0,118140.0,0.13142]
[1752412891247,0.09845548,118150.0,118140.0,0.36656]
[1752412891452,0.01302555,118150.0,118140.0,0.40131]
[1752412892513,0.01302555,118150.0,118140.0,0.36961]
[1752412893156,0.01302555,118150.0,118140.0,0.33921]
[1752412896438,0.01302555,118150.0,118140.0,0.36961]
[1752412903944,0.01302555,118150.0,118140.0,0.33921]
[1752412904881,0.01822555,118150.0,118140.0,0.33616]
[1752412905412,0.05092555,118150.0,118140.0,0.33616]
[1752412905603,0.05092555,118150.0,118140.0,0.20584]
[1752412905805,0.05092555,118150.0,118140.0,0.33612]
[1752412906021,0.01507555,118150.0,118140.0,0.33612]
[1752412908008,0.01822555,118150.0,118140.0,0.33612]
[1752412908202,0.01507555,118150.0,118140.0,0.33612]
[1752412909457,0.05062555,118150.0,118140.0,0.33612]
[1752412909902,0.05062555,118150.0,118140.0,0.20584]
[1752412910128,0.01822555,118150.0,118140.0,0.33612]
[1752412910343,0.01822555,118150.0,118140.0,0.20584]
[1752412910567,0.01822555,118150.0,118140.0,0.33612]
[1752412910777,0.01507555,118150.0,118140.0,0.33612]
[1752412910995,0.01302555,118150.0,118140.0,0.33612]
[1752412913115,0.08082555,118150.0,118140.0,0.33414]
[1752412914083,0.08082555,118150.0,118140.0,0.33623]
[1752412914643,0.04912555,118150.0,118140.0,0.33623]
[1752412917072,0.08052555,118150.0,118140.0,0.33414]
[1752412917466,0.08052555,118150.0,118140.0,0.33623]
[1752412917897,0.01822555,118150.0,118140.0,0.33623]
[1752412919643,0.0081096,118150.0,118140.0,0.33623]
[1752412921439,0.0695096,118150.0,118140.0,0.3341]
[1752412921659,0.0695096,118150.0,118140.0,0.33619]
[1752412921874,0.0381096,118150.0,118140.0,0.33619]
[1752412922099,0.0049596,118150.0,118140.0,0.33619]
[1752412922796,0.0029096,118150.0,118140.0,0.33619]
[1752412923223,0.40455,118160.0,118140.0,0.33619]
[1752412923461,0.48997993,118160.0,118150.0,0.20276]
[1752412923642,0.49202993,118160.0,118150.0,0.20276]
[1752412923866,0.50137896,118160.0,118150.0,0.20276]
[1752412925345,0.50237896,118160.0,118150.0,0.20276]
[1752412926926,0.44097896,118160.0,118150.0,0.20485]
[1752412927835,0.35339903,118160.0,118150.0,0.20485]
[1752412928049,0.01034903,118160.0,118150.0,0.27107]
[1752412928888,0.01234903,118160.0,118150.0,0.27207]
[1752412929175,0.01234903,118160.0,118150.0,0.27107]
[1752412929401,0.01334903,118160.0,118150.0,0.24307]
[1752412929829,0.01334903,118160.0,118150.0,0.20987]
[1752412930242,0.01234903,118160.0,118150.0,0.20987]
[1752412930501,0.01234903,118160.0,118150.0,0.21087]
[1752412932176,0.01234903,118160.0,118150.0,0.24297]
[1752412933915,0.01234903,118160.0,118150.0,0.27377]
[1752412937416,0.00734903,118160.0,118150.0,0.27377]
[1752412937611,0.003,118160.0,118150.0,0.27377]
[1752412938260,0.01252012,118160.0,118150.0,0.27377]
[1752412938462,0.003,118160.0,118150.0,0.27377]
[1752412940333,0.01225754,118160.0,118150.0,0.27377]
[1752412940570,0.003,118160.0,118150.0,0.27377]
[1752412942909,0.01253065,118160.0,118150.0,0.27377]
[1752412949519,0.16793058,118160.0,118150.0,0.20576]
[1752412949723,0.23550671,118160.0,118150.0,0.33592]
[1752412951022,0.29550671,118160.0,118150.0,0.33592]
[1752412951228,0.34625671,118160.0,118150.0,0.33592]
[1752412951442,0.29550671,118160.0,118150.0,0.33592]
[1752412951646,0.14250065,118160.0,118150.0,0.33592]
[1752412951887,0.14250065,118160.0,118150.0,0.33801]
[1752412952047,0.07462065,118160.0,118150.0,0.33801]
[1752412953336,0.07780065,118160.0,118150.0,0.33592]
[1752412953569,0.14220065,118160.0,118150.0,0.33592]
[1752412954581,0.14220065,118160.0,118150.0,0.20576]
[1752412954786,0.14220065,118160.0,118150.0,0.33592]
[1752412956849,0.14220065,118160.0,118150.0,0.20576]
[1752412957170,0.14220065,118160.0,118150.0,0.33592]
[1752412964127,0.14220065,118160.0,118150.0,0.20576]
[1752412964338,0.07253065,118160.0,118150.0,0.34111]
[1752412964552,0.07253065,118160.0,118150.0,0.37411]
[1752412965431,0.01253065,118160.0,118150.0,0.40601]
[1752412970906,0.003,118160.0,118150.0,0.40601]
[1752412981843,0.003,118160.0,118150.0,0.40601]
[1752412982774,0.003,118160.0,118150.0,0.37411]
[1752412982996,0.003,118160.0,118150.0,0.40491]
[1752412986306,0.0024,118170.0,118150.0,0.40491]
[1752412986509,0.00244951,118170.0,118160.0,0.20276]
[1752412986723,0.00244951,118170.0,118160.0,0.20483]
[1752412987685,0.00344951,118170.0,118160.0,0.20483]
[1752412987873,0.00446951,118170.0,118160.0,0.20483]
[1752412988130,0.03686951,118170.0,118160.0,0.20483]
[1752412988337,0.06976951,118170.0,118160.0,0.20483]
[1752412988556,0.07293951,118170.0,118160.0,0.20483]
[1752412991780,0.07293951,118170.0,118160.0,0.20583]
[1752412994995,0.07193951,118170.0,118160.0,0.20583]
[1752412995202,0.07293951,118170.0,118160.0,0.20883]
[1752412997840,0.04103951,118170.0,118160.0,0.20883]
[1752412999903,0.07293951,118170.0,118160.0,0.20883]
[1752413000115,0.07293951,118170.0,118160.0,0.20676]
[1752413000334,0.15836944,118170.0,118160.0,0.33684]
[1752413002115,0.00546951,118170.0,118160.0,0.33891]
[1752413002331,0.00546951,118170.0,118160.0,0.34203]
[1752413002332,0.34344951,118170.0,118160.0,0.34203]
[1752413002600,0.34344951,118170.0,118160.0,0.37483]
[1752413006084,0.00344951,118170.0,118160.0,0.40503]
[1752413013817,0.00344951,118170.0,118160.0,0.50500078]
[1752413014633,0.00344951,118170.0,118160.0,0.51527616]
[1752413015112,0.00344951,118170.0,118160.0,0.50500078]
[1752413015340,0.0002,118180.0,118170.0,0.033]
[1752413015591,0.0002,118180.0,118170.0,0.03827]
[1752413016761,0.0002,118180.0,118170.0,0.03927]
[1752413019082,0.00534,118180.0,118170.0,0.001]
[1752413019316,0.13751613,118180.0,118170.0,0.001]
[1752413019549,0.22294606,118180.0,118170.0,0.131]
[1752413020956,0.22294606,118180.0,118170.0,0.001]
[1752413021188,0.28294606,118180.0,118170.0,0.131]
[1752413023131,0.28294606,118180.0,118170.0,0.001]
[1752413023329,0.28294606,118180.0,118170.0,0.131]
[1752413023531,0.64831506,118180.0,118170.0,0.131]
[1752413024165,0.89831506,118180.0,118170.0,0.131]
[1752413024369,0.91771244,118180.0,118170.0,0.131]
[1752413024799,0.91771244,118180.0,118170.0,0.13]
[1752413025007,0.91871244,118180.0,118170.0,0.13]
[1752413025352,0.91771244,118180.0,118170.0,0.13]
[1752413025782,0.91971244,118180.0,118170.0,0.13]
[1752413026144,0.92171244,118180.0,118170.0,0.13]
[1752413031046,0.85413631,118180.0,118170.0,0.13]
[1752413033343,0.83473893,118180.0,118170.0,0.13]
[1752413046240,0.88544893,118180.0,118170.0,0.13]
[1752413050327,0.83473893,118180.0,118170.0,0.13]
[1752413056513,0.88544893,118180.0,118170.0,0.13]
[1752413056745,0.83473893,118180.0,118170.0,0.13]
[1752413059782,0.83473893,118180.0,118170.0,0.14577354]
[1752413063146,0.83473893,118180.0,118170.0,0.14577455]